bitfinex/quotes_ETHUSD_20250413
["timestamp","ask_amount","ask_price","bid_price","bid_amount"]
[1744560627854,18.24404026,1587.2,1587.1,0.05]
[1744560628082,18.24404026,1587.2,1587.1,0.17925218]
[1744560628286,18.24404026,1587.2,1587.1,0.05]
[1744560628503,18.24404026,1587.2,1587.1,0.17925218]
[1744560628794,18.24404026,1587.2,1587.1,0.05]
[1744560628995,18.24404026,1587.2,1587.1,0.17925218]
[1744560629179,18.24404026,1587.2,1587.1,0.05]
[1744560629365,18.24404026,1587.2,1587.1,0.17925218]
[1744560631897,18.24404026,1587.2,1587.1,0.33442214]
[1744560632068,18.24404026,1587.2,1587.1,0.05]
[1744560632269,18.24404026,1587.2,1587.1,0.33243549]
[1744560632473,18.24404026,1587.2,1587.1,0.05]
[1744560633251,18.24404026,1587.2,1587.1,0.33243549]
[1744560633448,18.24404026,1587.2,1587.1,0.05]
[1744560633695,18.24404026,1587.2,1587.1,0.33243549]
[1744560633879,18.24404026,1587.2,1587.1,0.05]
[1744560634082,18.24404026,1587.2,1587.1,0.33243549]
[1744560634383,18.24404026,1587.2,1587.1,0.05]
[1744560634598,18.24404026,1587.2,1587.1,0.33243549]
[1744560634785,18.24404026,1587.2,1587.1,0.05]
[1744560634987,18.24404026,1587.2,1587.1,0.33243549]
[1744560635991,18.24404026,1587.2,1587.1,0.05]
[1744560637517,18.24404026,1587.2,1587.1,0.33243549]
[1744560637689,18.24404026,1587.2,1587.1,0.05]
[1744560641620,17.43204026,1587.2,1587.1,0.05]
[1744560641819,9.1699994,1587.2,1587.1,0.05]
[1744560641978,9.1699994,1587.2,1587.1,0.32895902]
[1744560642183,15.4703994,1587.2,1587.1,0.32895902]
[1744560643007,15.4703994,1587.2,1587.1,0.05]
[1744560643529,15.4703994,1587.2,1587.1,0.32895902]
[1744560643729,15.4703994,1587.2,1587.1,0.05]
[1744560643930,15.4703994,1587.2,1587.1,0.32895902]
[1744560644120,15.4703994,1587.2,1587.1,0.05]
[1744560644307,15.4703994,1587.2,1587.1,0.32895902]
[1744560644506,15.4703994,1587.2,1587.1,0.05]
[1744560644709,15.4703994,1587.2,1587.1,0.32895902]
[1744560644944,15.4703994,1587.2,1587.1,0.05]
[1744560645422,15.4703994,1587.2,1587.1,0.32895902]
[1744560645755,9.1699994,1587.2,1587.1,0.32895902]
[1744560646056,9.1699994,1587.2,1587.1,0.05]
[1744560646407,9.1699994,1587.2,1587.1,0.32895902]
[1744560650553,6.1699994,1587.4,1587.1,0.32895902]
[1744560650752,6.1699994,1587.4,1587.2,13.42729]
[1744560651048,6.1699994,1587.4,1587.3,0.27610413]
[1744560651425,6.2989,1587.6,1587.3,0.27610413]
[1744560651426,6.4984353,1587.7,1587.5,6.29904]
[1744560651666,6.4984353,1587.7,1587.5,0.827]
[1744560651825,6.4984353,1587.7,1587.6,0.27598002]
[1744560653652,6.1699994,1587.7,1587.6,0.27598002]
[1744560654742,16.08540934,1587.7,1587.6,0.27598002]
[1744560654932,6.29956,1587.5,1587.3,0.8088]
[1744560655137,13.06893609,1587.5,1587.4,0.24138902]
[1744560655433,13.06893609,1587.5,1587.3,0.8088]
[1744560655634,14.3758297,1587.5,1587.4,0.24138902]
[1744560655844,17.3758297,1587.5,1587.4,0.24138902]
[1744560656044,17.3758297,1587.5,1587.3,0.8088]
[1744560656244,6.2996,1587.4,1587.3,0.6376]
[1744560658953,11.0761097,1587.5,1587.3,0.6376]
[1744560659174,3.0,1587.5,1587.3,0.6376]
[1744560659472,9.29921,1587.5,1587.3,0.6376]
[1744560659976,9.77332538,1587.5,1587.1,6.35077]
[1744560660272,6.29999,1587.4,1587.1,7.18017]
[1744560660450,6.29999,1587.4,1587.1,13.4808]
[1744560660650,6.29987,1587.4,1587.1,0.8794]
[1744560661160,6.30019,1587.3,1587.1,0.8794]
[1744560661452,6.3004,1587.2,1587.1,0.05]
[1744560662452,6.3004,1587.2,1587.1,0.29498302]
[1744560662624,6.3004,1587.2,1587.1,0.05]
[1744560662825,6.3004,1587.2,1587.1,0.29498302]
[1744560663025,6.3004,1587.2,1587.1,0.05]
[1744560663358,9.1699994,1587.2,1587.1,0.05]
[1744560663656,9.1699994,1587.2,1587.1,0.29510697]
[1744560663860,15.4703994,1587.2,1587.1,0.29510697]
[1744560668870,15.4703994,1587.2,1587.1,6.59590697]
[1744560668871,6.1699994,1587.2,1587.1,6.59590697]
[1744560669370,6.1699994,1587.6,1587.5,7.07021]
[1744560669670,6.29869,1587.7,1587.5,1.02131244]
[1744560669838,6.29869,1587.7,1587.5,0.25031244]
[1744560670033,6.29859,1587.7,1587.5,0.25031244]
[1744560670234,6.29817,1587.8,1587.5,6.29913]
[1744560670592,6.29817,1587.8,1587.6,0.24708993]
[1744560670940,12.59643,1587.8,1587.6,0.24708993]
[1744560671141,12.59643,1587.8,1587.4,6.29948]
[1744560671448,12.59643,1587.8,1587.5,0.24708993]
[1744560671690,6.29817,1587.8,1587.5,6.54626993]
[1744560672166,6.29817,1587.8,1587.6,0.771]
[1744560672553,6.29817,1587.8,1587.7,0.24708993]
[1744560674143,12.93657459,1587.9,1587.7,0.24708993]
[1744560675373,6.29802,1587.8,1587.7,0.24708993]
[1744560676079,6.29802,1587.8,1587.4,14.76147]
[1744560676277,12.93657459,1587.9,1587.7,0.24708993]
[1744560676278,6.63886459,1587.9,1587.7,0.24708993]
[1744560676470,6.63886459,1587.9,1587.7,0.8255]
[1744560676793,9.63886459,1587.9,1587.8,0.24708993]
[1744560678280,9.1699994,1587.9,1587.8,6.54510993]
[1744560678781,9.1699994,1587.9,1587.8,0.24708993]
[1744560680892,17.06194422,1587.9,1587.8,0.24708993]
[1744560681187,6.29866,1587.7,1587.3,7.12229]
[1744560681387,6.29866,1587.7,1587.4,6.53412523]
[1744560681690,12.59629,1587.8,1587.5,6.29918]
[1744560681859,6.29845,1587.7,1587.4,6.53403523]
[1744560682058,6.29845,1587.7,1587.6,0.2346991]
[1744560682271,6.29845,1587.7,1587.4,6.29946]
[1744560682468,6.29845,1587.7,1587.6,0.2346991]
[1744560682652,6.29845,1587.7,1587.4,6.29946]
[1744560682856,6.29805,1587.8,1587.6,0.2346991]
[1744560683086,6.29805,1587.8,1587.5,6.29916]
[1744560683087,8.00653404,1587.8,1587.5,6.29916]
[1744560683283,9.29805,1587.8,1587.7,0.2346991]
[1744560683483,12.8329994,1587.9,1587.6,7.12098]
[1744560683688,6.1699994,1587.9,1587.7,6.5328991]
[1744560683996,6.1699994,1587.9,1587.8,6.29802]
[1744560684395,6.1699994,1587.9,1587.8,6.5327191]
[1744560684775,6.1699994,1587.9,1587.8,8.62261101]
[1744560689308,6.1699994,1588.1,1588.0,6.29722]
[1744560689670,6.1699994,1588.1,1588.0,6.52968973]
[1744560689871,6.1699994,1588.4,1588.1,6.29664]
[1744560690093,6.1699994,1588.4,1588.1,7.11194]
[1744560690288,6.1699994,1588.4,1588.1,13.40864]
[1744560690491,6.29603,1588.3,1588.2,0.23098377]
[1744560690819,6.29603,1588.3,1587.9,7.11278]
[1744560690969,6.29603,1588.3,1588.0,6.52796995]
[1744560691837,6.29603,1588.3,1588.0,0.23085995]
[1744560692099,6.29648,1588.2,1588.0,0.23085995]
[1744560693628,6.76153909,1588.3,1588.0,0.23085995]
[1744560693814,13.05773909,1588.3,1588.0,6.2971]
[1744560694116,13.05773909,1588.3,1588.1,0.23085995]
[1744560694519,6.1699994,1588.3,1588.1,13.54008845]
[1744560694731,6.1699994,1588.3,1588.2,7.10743]
[1744560694918,6.1699994,1588.3,1588.2,0.811]
[1744560695112,6.1699994,1588.3,1588.2,1.03802088]
[1744560695796,6.1699994,1588.3,1588.2,0.22702088]
[1744560695996,6.1699994,1588.3,1588.1,6.29664]
[1744560695997,6.1699994,1588.3,1588.1,12.59336]
[1744560696197,6.1699994,1588.3,1588.2,6.52345088]
[1744560696520,6.1699994,1588.3,1588.2,0.22702088]
[1744560697222,6.1699994,1588.3,1588.1,7.637076]
[1744560697411,6.1699994,1588.3,1588.2,0.22702088]
[1744560697615,6.1699994,1588.3,1588.1,13.933746]
[1744560697802,6.1699994,1588.3,1588.2,0.22702088]
[1744560697991,6.1699994,1588.3,1588.1,13.933746]
[1744560698187,6.1699994,1588.3,1588.2,0.22702088]
[1744560698405,6.1699994,1588.3,1588.1,6.29664]
[1744560698604,6.1699994,1588.3,1588.2,0.22702088]
[1744560698804,6.1699994,1588.3,1588.1,6.29664]
[1744560699122,6.1699994,1588.3,1588.2,0.22702088]
[1744560699526,6.1699994,1588.3,1588.1,12.59331]
[1744560699727,6.1699994,1588.3,1588.2,0.22702088]
[1744560700226,11.20736334,1588.3,1588.2,0.20451012]
[1744560700401,17.50339334,1588.3,1587.8,0.7738]
[1744560700601,6.29698,1588.1,1587.9,0.20562328]
[1744560700917,6.29727,1588.0,1587.8,0.7738]
[1744560701319,12.59474,1588.0,1587.6,12.95967]
[1744560701514,6.29762,1587.9,1587.7,1.295967]
[1744560701715,6.29727,1588.0,1587.7,1.295967]
[1744560702031,6.29689,1588.1,1587.8,6.29789]
[1744560703231,12.59307,1588.2,1587.8,12.59578]
[1744560703395,16.2569894,1588.3,1587.9,7.07104]
[1744560703594,6.29644,1588.2,1587.9,7.07104]
[1744560703835,12.59315,1588.2,1587.9,7.07104]
[1744560704198,16.2570794,1588.3,1587.9,7.07104]
[1744560704400,6.29646,1588.2,1587.9,7.07104]
[1744560704630,6.29646,1588.2,1587.9,8.54686147]
[1744560704928,15.4662794,1588.3,1588.0,6.29722]
[1744560705128,9.1699994,1588.3,1588.1,6.2967]
[1744560705537,9.1699994,1588.3,1588.1,12.5934]
[1744560705704,13.82288916,1588.5,1588.2,0.782]
[1744560705705,6.29576,1588.4,1588.2,0.782]
[1744560706105,18.7607394,1588.5,1588.2,0.782]
[1744560706322,18.7607394,1588.5,1588.3,0.20599436]
[1744560706605,6.29564,1588.4,1588.2,0.782]
[1744560706803,6.29564,1588.4,1588.3,0.20599436]
[1744560706804,12.59148,1588.4,1588.3,0.20599436]
[1744560707030,6.29564,1588.4,1588.1,6.29669]
[1744560707232,6.29564,1588.4,1588.2,0.20599436]
[1744560707432,6.29564,1588.4,1588.1,6.29669]
[1744560707634,6.29564,1588.4,1588.2,0.20599436]
[1744560707837,6.29564,1588.4,1588.1,6.29669]
[1744560708135,6.29564,1588.4,1588.2,0.20599436]
[1744560708433,6.29564,1588.4,1588.1,6.29669]
[1744560708636,6.29564,1588.4,1588.2,0.20599436]
[1744560708932,6.29564,1588.4,1588.1,6.29669]
[1744560708933,12.59154,1588.4,1588.1,6.29669]
[1744560709131,12.59154,1588.4,1588.3,0.20599436]
[1744560709331,2.66715394,1588.4,1588.0,0.782]
[1744560709631,6.29669,1588.2,1587.8,19.97374]
[1744560709836,12.59349,1588.2,1587.9,0.20253149]
[1744560710020,6.63675401,1588.3,1587.8,7.3779]
[1744560710223,6.2969,1588.1,1587.9,0.20253149]
[1744560710533,6.2969,1588.1,1587.8,7.08088]
[1744560710735,6.2969,1588.1,1588.0,0.20438645]
[1744560711038,6.2969,1588.1,1587.8,13.37875]
[1744560711207,6.2969,1588.1,1587.9,0.20438645]
[1744560711535,6.2969,1588.1,1587.8,13.37875]
[1744560711734,6.2969,1588.1,1588.0,0.20500484]
[1744560712036,6.63675401,1588.3,1588.1,6.2968]
[1744560712234,6.1699994,1588.3,1588.1,13.24378048]
[1744560712415,6.1699994,1588.3,1588.2,7.07933]
[1744560712616,6.1699994,1588.3,1588.2,0.98790484]
[1744560713616,12.4660294,1588.3,1588.2,0.20500484]
[1744560714133,6.1699994,1588.3,1588.1,6.29663]
[1744560714311,6.1699994,1588.3,1588.2,0.20500484]
[1744560714638,6.1699994,1588.3,1588.1,7.634298]
[1744560714838,6.1699994,1588.3,1588.2,0.20166578]
[1744560715035,6.1699994,1588.3,1588.2,6.29643]
[1744560715335,18.7607394,1588.5,1588.1,7.634298]
[1744560715541,6.1699994,1588.5,1588.3,6.29602]
[1744560715731,12.4652594,1588.5,1588.2,7.26139558]
[1744560715932,12.4652594,1588.5,1588.2,7.0597298]
[1744560716133,12.4652594,1588.5,1588.3,0.20166578]
[1744560716443,6.1699994,1588.5,1588.3,0.96546578]
[1744560717141,6.1699994,1588.5,1588.3,7.26147578]
[1744560717346,6.1699994,1588.5,1588.4,6.29564]
[1744560717922,6.1699994,1588.5,1588.4,7.32405645]
[1744560718124,6.1699994,1589.0,1588.8,6.29397]
[1744560718325,6.1699994,1589.0,1588.9,6.29366]
[1744560718513,6.1699994,1589.0,1588.9,6.49384199]
[1744560718855,6.1699994,1589.0,1588.9,8.53642319]
[1744560719148,6.1699994,1589.0,1588.9,0.20018199]
[1744560719443,6.1699994,1589.0,1588.7,13.35257]
[1744560719645,6.1699994,1589.0,1588.8,6.48564319]
[1744560719838,6.1699994,1589.0,1588.8,6.48551319]
[1744560720035,6.1699994,1589.0,1588.9,6.29366]
[1744560720235,6.1699994,1589.0,1588.9,8.33537732]
[1744560720545,12.4617094,1589.4,1589.0,6.29288]
[1744560720848,13.39418,1589.2,1589.1,0.19115899]
[1744560721055,6.29349,1589.0,1588.6,13.3532]
[1744560721249,6.29349,1589.0,1588.7,6.48541899]
[1744560721414,12.4629094,1589.1,1588.7,12.77966899]
[1744560721620,6.29328,1589.0,1588.7,1.55179984]
[1744560723350,6.2937,1588.9,1588.7,0.19115899]
[1744560723545,12.58751,1588.9,1588.7,0.19115899]
[1744560723739,12.58751,1588.9,1588.6,0.7638]
[1744560723939,6.2937,1588.9,1588.8,0.19115899]
[1744560724139,6.29418,1588.8,1588.4,7.12223617]
[1744560724346,6.29418,1588.8,1588.5,7.00744362]
[1744560724551,6.29418,1588.8,1588.5,7.19860261]
[1744560724719,6.29418,1588.8,1588.5,7.26154856]
[1744560725420,6.29485,1588.6,1588.5,0.19115899]
[1744560725623,18.7583394,1588.8,1588.5,0.19115899]
[1744560725825,6.29449,1588.7,1588.5,0.19115899]
[1744560726432,6.29449,1588.7,1588.5,0.18734406]
[1744560727434,12.4641294,1588.8,1588.5,0.18734406]
[1744560727630,18.7585694,1588.8,1588.5,0.18734406]
[1744560727845,20.76362787,1588.8,1588.5,0.18734406]
[1744560728159,12.58935,1588.7,1588.5,0.18734406]
[1744560728336,6.29485,1588.6,1588.5,0.18734406]
[1744560728732,6.29583,1588.4,1588.0,13.68132]
[1744560729258,6.29583,1588.4,1588.0,7.08832]
[1744560729428,12.59257,1588.3,1588.0,4.86685935]
[1744560729945,12.59257,1588.3,1588.0,0.7911]
[1744560730929,6.29648,1588.2,1588.0,0.7911]
[1744560731137,12.59311,1588.2,1587.9,6.29759]
[1744560731336,6.29648,1588.2,1587.9,6.29759]
[1744560731542,6.29648,1588.2,1587.8,7.06567]
[1744560731727,6.29685,1588.1,1587.8,7.06567]
[1744560732256,6.29685,1588.1,1587.8,7.12864357]
[1744560732662,6.29648,1588.2,1587.8,8.47120293]
[1744560733531,6.29648,1588.2,1587.9,6.29758]
[1744560734030,6.29648,1588.2,1588.0,0.1760345]
[1744560734231,12.59313,1588.2,1588.0,0.1760345]
[1744560734529,6.29648,1588.2,1588.0,0.1760345]
[1744560735160,7.59423039,1588.2,1588.0,0.1760345]
[1744560735539,7.59423039,1588.2,1587.8,13.36336]
[1744560735747,6.29686,1588.1,1587.7,6.29834]
[1744560736046,7.59423039,1588.2,1587.9,6.29745]
[1744560736249,12.4664794,1588.2,1587.9,7.10665]
[1744560736437,12.4664794,1588.2,1587.9,13.40412]
[1744560736756,6.1699994,1588.2,1588.0,6.3600318]
[1744560736928,6.1699994,1588.5,1588.2,7.10546]
[1744560737556,6.1699994,1588.5,1588.3,0.17887633]
[1744560738065,12.4653894,1588.5,1588.3,0.17887633]
[1744560738572,6.1699994,1588.5,1588.3,0.17887633]
[1744560738864,12.4653894,1588.5,1588.3,0.17887633]
[1744560739028,14.38786321,1588.5,1588.3,0.17887633]
[1744560739228,12.4653894,1588.5,1588.3,0.17887633]
[1744560739429,6.1699994,1588.5,1588.3,0.17887633]
[1744560739766,9.2945,1588.7,1588.3,6.47476633]
[1744560740058,6.29503,1588.6,1588.3,6.47476633]
[1744560740260,6.29564,1588.4,1588.3,0.17887633]
[1744560740666,12.59149,1588.4,1588.0,20.03501]
[1744560740868,6.29564,1588.4,1588.1,0.17529329]
[1744560741238,12.59147,1588.4,1588.1,0.17529329]
[1744560742141,12.5907,1588.5,1588.1,12.76876329]
[1744560742340,12.5907,1588.5,1588.1,7.83129962]
[1744560742673,6.29567,1588.4,1588.1,7.83129962]
[1744560742885,6.29567,1588.4,1588.1,1.53463962]
[1744560743065,6.29567,1588.4,1588.1,0.17529329]
[1744560743066,6.29604,1588.3,1588.1,0.17529329]
[1744560743450,12.59166,1588.4,1588.1,0.17529329]
[1744560746387,7.58699603,1588.6,1588.1,0.17529329]
[1744560746388,6.29608,1588.3,1588.1,0.17529329]
[1744560746546,6.29643,1588.2,1588.1,0.17529329]
[1744560746947,6.29643,1588.2,1587.8,13.74675]
[1744560747146,6.29643,1588.2,1588.1,0.17726994]
[1744560747472,6.2969,1588.1,1587.8,13.74675]
[1744560747843,6.29752,1588.0,1587.8,7.4489]
[1744560748080,6.29762,1587.9,1587.8,7.4489]
[1744560748300,12.59508,1588.0,1587.6,13.43032]
[1744560748503,12.59494,1588.0,1587.6,15.434952]
[1744560748876,13.41264,1588.0,1587.6,15.434952]
[1744560749076,7.11512,1588.0,1587.6,15.434952]
[1744560749277,7.11512,1588.0,1587.7,0.06297748]
[1744560749909,13.41257,1588.0,1587.6,15.434872]
[1744560750404,6.29762,1587.9,1587.6,9.136202]
[1744560751107,6.29762,1587.9,1587.6,15.434882]
[1744560751271,12.4664394,1588.2,1587.8,6.29766]
[1744560751272,3.0,1588.1,1587.8,6.29766]
[1744560751474,9.29686,1588.1,1587.8,6.29766]
[1744560751677,19.5507494,1588.2,1587.8,12.59556]
[1744560752175,13.2540394,1588.2,1587.8,6.29766]
[1744560752375,6.29697,1588.1,1587.8,7.64862502]
[1744560752574,6.29697,1588.1,1587.9,0.16953509]
[1744560753006,6.29697,1588.1,1587.8,7.64862502]
[1744560753209,6.29697,1588.1,1588.0,0.16953509]
[1744560753363,6.29697,1588.1,1587.8,6.29766]
[1744560753562,6.29697,1588.1,1588.0,0.16953509]
[1744560753764,6.29697,1588.1,1587.8,6.36063312]
[1744560753965,6.29697,1588.1,1588.0,0.16953509]
[1744560754165,6.29697,1588.1,1587.8,6.29766]
[1744560754464,12.59402,1588.1,1587.7,13.5102802]
[1744560754663,12.59402,1588.1,1587.8,0.16953509]
[1744560754908,6.29729,1588.0,1587.8,0.16953509]
[1744560755101,13.2540294,1588.2,1587.8,7.89840876]
[1744560755303,13.2540294,1588.2,1587.9,6.29751]
[1744560755734,12.4665294,1588.2,1587.9,7.07351]
[1744560755937,12.4665294,1588.2,1588.0,0.16953509]
[1744560756832,6.29683,1588.1,1588.0,0.16953509]
[1744560757032,6.29731,1588.0,1587.7,8.0004702]
[1744560757244,6.29731,1588.0,1587.8,0.16953509]
[1744560757395,6.29746,1588.0,1587.8,0.16953509]
[1744560758027,12.59485,1588.0,1587.8,0.16953509]
[1744560758821,6.29762,1587.9,1587.8,0.16953509]
[1744560759533,6.29762,1587.9,1587.6,14.602082]
[1744560759738,7.10208,1588.0,1587.8,0.16953509]
[1744560759896,7.10208,1588.0,1587.7,6.36135754]
[1744560760100,7.10208,1588.0,1587.8,0.16953509]
[1744560760630,13.39949,1588.0,1587.8,0.16953509]
[1744560761024,6.29762,1587.9,1587.8,0.16953509]
[1744560761225,12.4664794,1588.2,1587.8,7.08634]
[1744560761430,6.29453,1588.7,1588.4,6.29564]
[1744560761613,6.49846624,1588.8,1588.6,6.29472]
[1744560761971,0.32846684,1588.8,1588.7,7.25003911]
[1744560762114,6.1699994,1589.2,1588.8,6.29385]
[1744560762318,6.1699994,1589.2,1589.0,6.29298]
[1744560762704,6.1699994,1589.2,1589.1,0.16694219]
[1744560764355,6.1699994,1589.2,1589.1,6.45981219]
[1744560764555,6.9746994,1589.5,1589.1,7.25761219]
[1744560764852,6.9746994,1589.5,1589.1,7.25737219]
[1744560765151,6.9746994,1589.5,1589.2,6.29244]
[1744560765498,6.9746994,1589.5,1589.3,0.14694796]
[1744560765943,13.2662094,1589.5,1589.3,0.14694796]
[1744560766143,6.9746994,1589.5,1588.9,0.7978]
[1744560766446,9.1699994,1589.5,1589.2,6.29214]
[1744560766641,9.1699994,1589.5,1589.3,0.1463313]
[1744560767850,9.1699994,1589.5,1589.3,6.4383813]
[1744560771269,6.1699994,1589.5,1589.4,6.29168]
[1744560771423,3.8169,1589.7,1589.4,6.29168]
[1744560771624,3.8169,1589.7,1589.5,0.14472817]
[1744560772130,0.8169,1589.7,1589.6,6.29089]
[1744560772438,0.8169,1589.7,1589.6,6.43512495]
[1744560772638,0.8169,1589.7,1589.6,0.14423495]
[1744560775837,0.8169,1589.7,1589.4,6.29166]
[1744560776041,1.51558994,1589.7,1589.5,0.14423495]
[1744560776767,6.1699994,1589.8,1589.5,6.43538495]
[1744560777968,6.1699994,1589.8,1589.5,6.43535495]
[1744560778128,6.1699994,1589.8,1589.5,12.72650495]
[1744560778529,6.1699994,1589.8,1589.5,6.43535495]
[1744560779339,6.1699994,1589.8,1589.7,6.29049]
[1744560779740,6.1699994,1589.8,1589.7,6.4248593]
[1744560780245,0.32827321,1590.0,1589.9,6.2897]
[1744560780441,0.32827321,1590.0,1589.9,6.42308312]
[1744560780643,6.2893,1590.0,1589.9,0.13338312]
[1744560780869,12.57824,1590.1,1589.6,7.08676]
[1744560781179,4.257824,1590.0,1589.7,0.12980902]
[1744560781329,4.257824,1590.0,1589.7,6.42015902]
[1744560781537,13.2239194,1589.9,1589.7,0.12980902]
[1744560781745,6.9341994,1589.9,1589.7,0.12980902]
[1744560781948,6.9341994,1589.9,1589.5,12.58232]
[1744560782136,6.9341994,1589.9,1589.6,6.29058]
[1744560782363,6.1699994,1589.9,1589.6,6.29058]
[1744560782675,6.1699994,1589.9,1589.7,0.12980902]
[1744560782833,6.1699994,1589.9,1589.8,6.29009]
[1744560783036,6.1699994,1590.2,1589.9,6.2897]
[1744560783373,6.1699994,1590.2,1590.0,12.70827224]
[1744560783577,6.1699994,1590.2,1590.1,6.28891]
[1744560784073,6.1699994,1590.2,1590.1,6.41563894]
[1744560784377,6.1699994,1590.2,1590.1,0.12672894]
[1744560784548,6.86341934,1590.2,1590.1,0.12672894]
[1744560784745,6.86341934,1590.2,1589.9,6.28967]
[1744560784960,6.86341934,1590.2,1590.1,0.12672894]
[1744560785477,6.86341934,1590.2,1589.9,6.28967]
[1744560785678,6.1199994,1590.2,1590.0,6.41599894]
[1744560786283,6.1199994,1590.2,1590.0,0.12672894]
[1744560786864,6.1199994,1590.2,1590.1,0.8]
[1744560787174,6.1199994,1590.2,1590.0,6.28907]
[1744560787467,6.1199994,1590.2,1590.1,0.11785695]
[1744560787768,6.1199994,1590.2,1590.1,6.40676695]
[1744560790851,6.1199994,1590.2,1590.1,0.11785695]
[1744560791044,6.1199994,1590.2,1589.9,7.08969]
[1744560791045,9.1199994,1590.2,1589.9,7.08969]
[1744560791239,6.1199994,1590.2,1590.1,6.28891]
[1744560791655,6.1199994,1590.2,1590.1,6.40676695]
[1744560792578,6.1199994,1590.2,1590.1,0.11785695]
[1744560794304,6.1199994,1590.2,1590.1,6.40676695]
[1744560795114,12.4085094,1590.2,1590.1,0.11785695]
[1744560795415,6.1199994,1590.2,1589.9,7.0896]
[1744560795617,6.1199994,1590.2,1590.1,0.11785695]
[1744560795789,6.1199994,1590.2,1590.0,6.52338106]
[1744560795982,6.1199994,1590.2,1589.9,7.79856]
[1744560796618,6.1199994,1590.2,1589.9,1.50896]
[1744560796793,6.1199994,1590.2,1589.9,0.8]
[1744560797224,12.4086594,1590.2,1589.9,0.8]
[1744560797648,6.1199994,1590.2,1589.9,0.8]
[1744560797947,6.1199994,1590.2,1590.0,6.28927]
[1744560798146,6.33783,1590.4,1590.0,6.28927]
[1744560798356,6.33783,1590.4,1590.1,0.628927]
[1744560798951,12.62571,1590.4,1590.1,0.628927]
[1744560799148,6.28812,1590.3,1590.1,0.628927]
[1744560799354,6.28915,1590.1,1589.9,0.8]
[1744560799522,6.28856,1590.2,1589.9,0.8]
[1744560799726,6.28856,1590.2,1589.9,7.08969]
[1744560801151,12.57728,1590.2,1589.9,7.08969]
[1744560801453,12.57728,1590.2,1589.9,0.8]
[1744560801649,6.28895,1590.1,1589.9,0.8]
[1744560802348,12.57735,1590.2,1589.9,1.508996]
[1744560802556,12.57828,1590.1,1589.9,0.8]
[1744560805148,6.28901,1590.1,1589.9,0.8]
[1744560805313,12.57813,1590.1,1589.9,0.8]
[1744560806053,6.28901,1590.1,1589.9,0.8]
[1744560806354,6.28901,1590.1,1590.0,0.11805061]
[1744560812259,7.06951,1590.1,1590.0,0.11805061]
[1744560812416,6.28901,1590.1,1590.0,0.11805061]
[1744560812617,6.28901,1590.1,1589.8,6.35287152]
[1744560812917,6.28901,1590.1,1590.0,0.11977507]
[1744560813117,12.57815,1590.1,1589.9,0.63528715]
[1744560813454,12.5781,1590.1,1589.9,0.63528715]
[1744560814269,12.5781,1590.1,1589.7,19.9512]
[1744560814551,6.2894,1590.0,1589.7,13.66075]
[1744560814733,6.2894,1590.0,1589.8,0.28544911]
[1744560815244,12.57828,1590.1,1589.7,13.36611]
[1744560815421,12.57828,1590.1,1589.8,6.35288156]
[1744560815627,12.57828,1590.1,1589.8,1.34285416]
[1744560818985,6.28931,1590.0,1589.8,1.34285416]
[1744560820387,6.2897,1589.9,1589.8,1.34285416]
[1744560820973,6.2897,1589.9,1589.7,0.7853]
[1744560824541,6.28931,1590.0,1589.7,7.07577]
[1744560824738,6.28902,1590.1,1589.8,6.28989]
[1744560824941,6.28902,1590.1,1589.8,6.35278605]
[1744560826078,12.57814,1590.1,1589.7,13.36612]
[1744560826265,12.57814,1590.1,1589.8,1.336612]
[1744560827989,12.57903,1590.0,1589.8,1.336612]
[1744560828288,6.28947,1590.0,1589.8,1.336612]
[1744560828889,12.57896,1590.0,1589.8,1.336612]
[1744560829071,6.28947,1590.0,1589.8,1.336612]
[1744560829477,12.57893,1590.0,1589.8,1.336612]
[1744560830288,12.572984,1590.0,1589.8,1.336612]
[1744560832286,6.283524,1590.0,1589.8,1.336612]
[1744560832489,12.572974,1590.0,1589.8,1.336612]
[1744560833302,6.283524,1590.0,1589.8,1.336612]
[1744560834101,6.283524,1590.0,1589.7,7.07571]
[1744560834977,6.283524,1590.0,1589.8,0.28596217]
[1744560835612,6.283524,1590.0,1589.7,7.07571]
[1744560835969,6.283524,1590.0,1589.7,13.36605]
[1744560836469,12.57816,1590.1,1589.8,6.29009]
[1744560839323,12.57816,1590.1,1589.8,6.19009]
[1744560839521,7.10665,1590.0,1589.7,7.07564]
[1744560839732,13.39627,1590.0,1589.7,6.29034]
[1744560840393,13.39627,1590.0,1589.6,12.58158]
[1744560840591,13.39627,1590.0,1589.7,0.28603692]
[1744560840793,6.29009,1589.8,1589.7,0.28603692]
[1744560840993,13.838353,1589.8,1589.5,0.8137]
[1744560841514,6.29064,1589.7,1589.6,0.28608062]
[1744560841820,13.39852,1589.7,1589.6,0.28608062]
[1744560842024,6.29128,1589.5,1589.3,0.8137]
[1744560842242,6.29096,1589.6,1589.3,0.8137]
[1744560842396,6.29096,1589.6,1589.4,0.28599376]
[1744560842600,9.1199994,1589.9,1589.8,6.29009]
[1744560842601,6.1199994,1589.9,1589.8,6.29009]
[1744560842825,12.4085294,1590.2,1589.9,7.10336]
[1744560843103,14.35992134,1590.2,1589.9,7.10336]
[1744560843355,20.64866134,1590.2,1589.8,6.57608376]
[1744560843645,6.28896,1590.1,1589.8,6.29009]
[1744560845041,6.28896,1590.1,1589.8,6.29007]
[1744560845542,14.35997134,1590.2,1589.8,6.35296224]
[1744560845714,12.4085794,1590.2,1589.8,7.00673622]
[1744560845914,18.6974594,1590.2,1589.8,13.29665622]
[1744560849066,18.6974594,1590.2,1589.8,12.57999]
[1744560849247,12.4085794,1590.2,1589.9,6.28964]
[1744560849450,10.46159938,1590.4,1590.0,7.1287523]
[1744560849653,6.28828,1590.3,1590.0,0.7769]
[1744560849863,16.74949938,1590.4,1590.0,6.28909]
[1744560850162,16.74949938,1590.4,1590.0,12.57825]
[1744560850472,6.28812,1590.3,1590.0,6.28909]
[1744560850674,10.46155938,1590.4,1590.0,13.83609]
[1744560850879,10.46155938,1590.4,1590.1,6.28884]
[1744560851173,4.17377938,1590.4,1590.2,6.2883]
[1744560851327,0.37787938,1590.4,1590.2,6.2883]
[1744560853579,0.37787938,1590.4,1590.3,7.12789964]
[1744560853879,0.37787938,1590.4,1590.3,8.4695196]